[Event "Gibraltar Masters 18th"]
[Site "Gibraltar"]
[Date "2020.01.24"]
[Round "4.12"]
[White "Adhiban, Baskaran"]
[Black "Lalith, Babu M R"]
[Result "1/2-1/2"]
[ECO "C82"]
[WhiteElo "2654"]
[BlackElo "2558"]
[PlyCount "63"]
[EventDate "2020.01.21"]
[EventType "swiss"]
[EventRounds "10"]
[EventCountry "GGB"]
[SourceTitle "BritBase"]
[Source "John Saunders"]
[SourceDate "2021.06.05"]
[SourceVersion "1"]
[SourceVersionDate "2021.06.05"]
[SourceQuality "1"]
[TimeControl "40/100:0"]
[WhiteClock "0:15:17"]
[BlackClock "0:52:30"]

1. e4 {[%emt 0:00:00]} e5 {[%emt 0:00:00]} 2. Nf3 {[%emt 0:00:00]} Nc6 {
[%emt 0:00:00]} 3. Bb5 {[%emt 0:00:00]} a6 {[%emt 0:00:00]} 4. Ba4 {[%emt 0:00:
00]} Nf6 {[%emt 0:00:00]} 5. O-O {[%emt 0:00:00]} Nxe4 {[%emt 0:00:00]} 6. d4 {
[%emt 0:00:00]} b5 {[%emt 0:00:00]} 7. Bb3 {[%emt 0:00:00]} d5 {[%emt 0:00:00]}
8. dxe5 {[%emt 0:00:00]} Be6 {[%emt 0:00:00]} 9. c3 {[%emt 0:00:00]} Bc5 {
[%emt 0:00:00]} 10. Qd3 {[%emt 0:00:00]} O-O {[%emt 0:00:00]} 11. Nbd2 {
[%emt 0:00:00]} f5 {[%emt 0:00:00]} 12. exf6 {[%emt 0:00:00]} Nxf6 {[%emt 0:00:
00]} 13. a4 {[%emt 0:00:00]} bxa4 {[%emt 0:00:00]} 14. Rxa4 {[%emt 0:00:00]}
Qd6 {[%emt 0:00:00]} 15. Rxa6 {[%emt 0:00:00]} Rxa6 {[%emt 0:00:00]} 16. Qxa6 {
[%emt 0:00:00]} Ng4 {[%emt 0:00:00]} 17. h3 {[%emt 0:00:00]} Nxf2 {[%emt 0:00:
00]} 18. Rxf2 {[%emt 0:00:00]} Qg3 {[%emt 0:00:00]} 19. Qe2 {[%emt 0:00:00]}
Ne5 {[%emt 0:00:00]} 20. Nd4 {[%emt 0:00:00]} Rxf2 {[%emt 0:00:00]} 21. Qxf2 {
[%emt 0:00:00]} Qxf2+ {[%emt 0:00:00]} 22. Kxf2 {[%emt 0:00:00]} Bxd4+ {
[%emt 0:00:00]} 23. cxd4 {[%emt 0:00:00]} Nd3+ {[%emt 0:00:00]} 24. Ke3 {
[%emt 0:00:00]} Nxc1 {[%emt 0:00:00]} 25. Ba4 {[%emt 0:00:00]} Kf8 {[%emt 0:00:
00]} 26. Bc2 {[%emt 0:00:00]} h6 {[%emt 0:00:00]} 27. Kf4 {[%emt 0:00:00]} Ke7
{[%emt 0:00:00]} 28. Nb3 {[%emt 0:00:00]} Nxb3 {[%emt 0:00:00]} 29. Bxb3 {
[%emt 0:00:00]} Kf6 {[%emt 0:00:00]} 30. h4 {[%emt 0:00:00]} g5+ {[%emt 0:00:
00]} 31. hxg5+ {[%emt 0:00:00]} hxg5+ {[%emt 0:00:00]} 32. Ke3 {[%emt 0:00:00]}
1/2-1/2

[Event "Gibraltar Masters 18th"]
[Site "Gibraltar"]
[Date "2020.01.24"]
[Round "4.13"]
[White "Ali Marandi, Cemil Can"]
[Black "Esipenko, Andrey"]
[Result "0-1"]
[ECO "D02"]
[WhiteElo "2546"]
[BlackElo "2654"]
[PlyCount "130"]
[EventDate "2020.01.21"]
[EventType "swiss"]
[EventRounds "10"]
[EventCountry "GGB"]
[SourceTitle "BritBase"]
[Source "John Saunders"]
[SourceDate "2021.06.05"]
[SourceVersion "1"]
[SourceVersionDate "2021.06.05"]
[SourceQuality "1"]
[TimeControl "40/100:0"]
[WhiteClock "0:03:56"]
[BlackClock "0:14:16"]

1. d4 {[%emt 0:00:00]} Nf6 {[%emt 0:00:00]} 2. Nf3 {[%emt 0:00:00]} d5 {
[%emt 0:00:00]} 3. Bf4 {[%emt 0:00:00]} Bf5 {[%emt 0:00:00]} 4. e3 {[%emt 0:00:
00]} e6 {[%emt 0:00:00]} 5. Bd3 {[%emt 0:00:00]} Bd6 {[%emt 0:00:00]} 6. Bxf5 {
[%emt 0:00:00]} exf5 {[%emt 0:00:00]} 7. Qd3 {[%emt 0:00:00]} Bxf4 {[%emt 0:00:
00]} 8. exf4 {[%emt 0:00:00]} O-O {[%emt 0:00:00]} 9. O-O {[%emt 0:00:00]} g6 {
[%emt 0:00:00]} 10. Nbd2 {[%emt 0:00:00]} c6 {[%emt 0:00:00]} 11. Rfe1 {
[%emt 0:00:00]} Na6 {[%emt 0:00:00]} 12. Ne5 {[%emt 0:00:00]} Nc7 {[%emt 0:00:
00]} 13. c3 {[%emt 0:00:00]} Ne6 {[%emt 0:00:00]} 14. g3 {[%emt 0:00:00]} Qd6 {
[%emt 0:00:00]} 15. Re2 {[%emt 0:00:00]} Rae8 {[%emt 0:00:00]} 16. Rae1 {
[%emt 0:00:00]} Kg7 {[%emt 0:00:00]} 17. f3 {[%emt 0:00:00]} Nh5 {[%emt 0:00:
00]} 18. Qc2 {[%emt 0:00:00]} c5 {[%emt 0:00:00]} 19. Qa4 {[%emt 0:00:00]} cxd4
{[%emt 0:00:00]} 20. Qxa7 {[%emt 0:00:00]} Qc7 {[%emt 0:00:00]} 21. Qa4 {
[%emt 0:00:00]} Nhxf4 {[%emt 0:00:00]} 22. gxf4 {[%emt 0:00:00]} Nxf4 {[%emt 0:
00:00]} 23. Qxd4 {[%emt 0:00:00]} Nxe2+ {[%emt 0:00:00]} 24. Rxe2 {[%emt 0:00:
00]} f6 {[%emt 0:00:00]} 25. f4 {[%emt 0:00:00]} fxe5 {[%emt 0:00:00]} 26. fxe5
{[%emt 0:00:00]} Re6 {[%emt 0:00:00]} 27. Qxd5 {[%emt 0:00:00]} Qe7 {[%emt 0:
00:00]} 28. Nf3 {[%emt 0:00:00]} Rd8 {[%emt 0:00:00]} 29. Qc4 {[%emt 0:00:00]}
Rd1+ {[%emt 0:00:00]} 30. Kg2 {[%emt 0:00:00]} Qd7 {[%emt 0:00:00]} 31. Qf4 {
[%emt 0:00:00]} Qd5 {[%emt 0:00:00]} 32. Kf2 {[%emt 0:00:00]} Re7 {[%emt 0:00:
00]} 33. Qh4 {[%emt 0:00:00]} Qc5+ {[%emt 0:00:00]} 34. Kg2 {[%emt 0:00:00]}
Re6 {[%emt 0:00:00]} 35. Qf4 {[%emt 0:00:00]} Qd5 {[%emt 0:00:00]} 36. Kf2 {
[%emt 0:00:00]} Qxa2 {[%emt 0:00:00]} 37. Nd4 {[%emt 0:00:00]} Re7 {[%emt 0:00:
00]} 38. e6 {[%emt 0:00:00]} Qd5 {[%emt 0:00:00]} 39. Qg5 {[%emt 0:00:10]} Re8
{[%emt 0:00:00]} 40. Qf4 {[%emt 0:00:55]} Re7 {[%emt 0:00:37]} 41. Qg5 {
[%emt 0:00:00]} Re8 {[%emt 0:00:00]} 42. Qf4 {[%emt 0:00:00]} Kh8 {[%emt 0:00:
00]} 43. e7 {[%emt 0:00:00]} Kg8 {[%emt 0:00:00]} 44. Qe3 {[%emt 0:00:00]} Qe4
{[%emt 0:00:00]} 45. Qxe4 {[%emt 0:00:00]} fxe4 {[%emt 0:00:00]} 46. Rxe4 {
[%emt 0:00:00]} Kf7 {[%emt 0:00:00]} 47. Nf3 {[%emt 0:00:00]} Rxe7 {[%emt 0:00:
00]} 48. Rb4 {[%emt 0:00:00]} Kg7 {[%emt 0:00:00]} 49. h4 {[%emt 0:00:00]} Rd3
{[%emt 0:00:00]} 50. Kg2 {[%emt 0:00:00]} Kh6 {[%emt 0:00:00]} 51. Nd4 {
[%emt 0:00:00]} Kh5 {[%emt 0:00:00]} 52. Rb5+ {[%emt 0:00:00]} Kxh4 {[%emt 0:
00:00]} 53. Nf3+ {[%emt 0:00:00]} Kg4 {[%emt 0:00:00]} 54. Ne5+ {[%emt 0:00:00]
} Rxe5 {[%emt 0:00:00]} 55. Rxe5 {[%emt 0:00:00]} Rd2+ {[%emt 0:00:00]} 56. Kf1
{[%emt 0:00:00]} Rxb2 {[%emt 0:00:00]} 57. Re6 {[%emt 0:00:00]} Kf5 {[%emt 0:
00:00]} 58. Rd6 {[%emt 0:00:00]} h5 {[%emt 0:00:00]} 59. c4 {[%emt 0:00:00]} g5
{[%emt 0:00:00]} 60. c5 {[%emt 0:00:00]} Kg4 {[%emt 0:00:00]} 61. c6 {[%emt 0:
00:00]} bxc6 {[%emt 0:00:00]} 62. Rxc6 {[%emt 0:00:00]} Kh3 {[%emt 0:00:00]}
63. Rc5 {[%emt 0:00:00]} Rg2 {[%emt 0:00:00]} 64. Rc8 {[%emt 0:00:00]} h4 {
[%emt 0:00:00]} 65. Rh8 {[%emt 0:00:00]} Kh2 {[%emt 0:00:00]} 0-1

[Event "Gibraltar Masters 18th"]
[Site "Gibraltar"]
[Date "2020.01.24"]
[Round "4.14"]
[White "Lagarde, Maxime"]
[Black "Werle, Jan"]
[Result "0-1"]
[ECO "C45"]
[WhiteElo "2651"]
[BlackElo "2545"]
[PlyCount "94"]
[EventDate "2020.01.21"]
[EventType "swiss"]
[EventRounds "10"]
[EventCountry "GGB"]
[SourceTitle "BritBase"]
[Source "John Saunders"]
[SourceDate "2021.06.05"]
[SourceVersion "1"]
[SourceVersionDate "2021.06.05"]
[SourceQuality "1"]
[TimeControl "40/100:0"]
[WhiteClock "1:05:23"]
[BlackClock "0:43:06"]

1. e4 {[%emt 0:00:00]} e5 {[%emt 0:00:00]} 2. Nf3 {[%emt 0:00:00]} Nc6 {
[%emt 0:00:00]} 3. d4 {[%emt 0:00:00]} exd4 {[%emt 0:00:00]} 4. Nxd4 {[%emt 0:
00:00]} Bc5 {[%emt 0:00:00]} 5. Be3 {[%emt 0:00:00]} Qf6 {[%emt 0:00:00]} 6. c3
{[%emt 0:00:00]} Nge7 {[%emt 0:00:00]} 7. Bb5 {[%emt 0:00:00]} Bb6 {[%emt 0:00:
00]} 8. O-O {[%emt 0:00:00]} O-O {[%emt 0:00:00]} 9. a4 {[%emt 0:00:00]} a6 {
[%emt 0:00:00]} 10. Bxc6 {[%emt 0:00:00]} bxc6 {[%emt 0:00:00]} 11. Nd2 {
[%emt 0:00:00]} a5 {[%emt 0:00:00]} 12. f4 {[%emt 0:00:00]} d5 {[%emt 0:00:00]}
13. f5 {[%emt 0:00:00]} dxe4 {[%emt 0:00:00]} 14. g4 {[%emt 0:00:00]} Nd5 {
[%emt 0:00:00]} 15. Nxe4 {[%emt 0:00:00]} Qe5 {[%emt 0:00:00]} 16. Qf3 {
[%emt 0:00:00]} Nxe3 {[%emt 0:00:00]} 17. Qxe3 {[%emt 0:00:00]} Bb7 {[%emt 0:
00:00]} 18. Rf4 {[%emt 0:00:00]} Rad8 {[%emt 0:00:00]} 19. Re1 {[%emt 0:00:00]}
Rfe8 {[%emt 0:00:00]} 20. Kg2 {[%emt 0:00:00]} c5 {[%emt 0:00:00]} 21. Nf3 {
[%emt 0:00:00]} c4 {[%emt 0:00:00]} 22. Qc1 {[%emt 0:00:00]} Bxe4 {[%emt 0:00:
00]} 23. Rfxe4 {[%emt 0:00:00]} Qxe4 {[%emt 0:00:00]} 24. Rxe4 {[%emt 0:00:00]}
Rxe4 {[%emt 0:00:00]} 25. Nd4 {[%emt 0:00:00]} Bxd4 {[%emt 0:00:00]} 26. cxd4 {
[%emt 0:00:00]} Rxg4+ {[%emt 0:00:00]} 27. Kf3 {[%emt 0:00:00]} Rgxd4 {[%emt 0:
00:00]} 28. Qe1 {[%emt 0:00:00]} Rd3+ {[%emt 0:00:00]} 29. Kg2 {[%emt 0:00:00]}
Rd2+ {[%emt 0:00:00]} 30. Kg3 {[%emt 0:00:00]} R2d3+ {[%emt 0:00:00]} 31. Kg2 {
[%emt 0:00:00]} Rd2+ {[%emt 0:00:00]} 32. Kg3 {[%emt 0:00:00]} h5 {[%emt 0:00:
00]} 33. Qe5 {[%emt 0:00:00]} R2d3+ {[%emt 0:00:00]} 34. Kg2 {[%emt 0:00:00]}
Rd2+ {[%emt 0:00:00]} 35. Kg3 {[%emt 0:00:00]} R2d3+ {[%emt 0:00:00]} 36. Kg2 {
[%emt 0:00:00]} Rb8 {[%emt 0:00:00]} 37. f6 {[%emt 0:00:00]} Rd2+ {[%emt 0:00:
00]} 38. Kg3 {[%emt 0:00:00]} Rb3+ {[%emt 0:00:00]} 39. Kh4 {[%emt 0:00:00]}
Rbxb2 {[%emt 0:00:00]} 40. Qe8+ {[%emt 0:00:00]} Kh7 {[%emt 0:00:00]} 41. Qe4+
{[%emt 0:00:00]} g6 {[%emt 0:02:44]} 42. Qe7 {[%emt 0:00:00]} Rd4+ {[%emt 0:00:
00]} 43. Kg3 {[%emt 0:00:00]} Rd3+ {[%emt 0:00:00]} 44. Kh4 {[%emt 0:00:00]}
Rxh2+ {[%emt 0:00:00]} 45. Kg5 {[%emt 0:00:00]} Rg2+ {[%emt 0:00:00]} 46. Kf4 {
[%emt 0:00:00]} Rf2+ {[%emt 0:00:00]} 47. Kg5 {[%emt 0:00:00]} Rf5+ {[%emt 0:
00:00]} 0-1

[Event "Gibraltar Masters 18th"]
[Site "Gibraltar"]
[Date "2020.01.24"]
[Round "4.15"]
[White "Donchenko, Alexander"]
[Black "Kaidanov, Gregory"]
[Result "0-1"]
[ECO "D31"]
[WhiteElo "2647"]
[BlackElo "2546"]
[PlyCount "104"]
[EventDate "2020.01.21"]
[EventType "swiss"]
[EventRounds "10"]
[EventCountry "GGB"]
[SourceTitle "BritBase"]
[Source "John Saunders"]
[SourceDate "2021.06.05"]
[SourceVersion "1"]
[SourceVersionDate "2021.06.05"]
[SourceQuality "1"]
[TimeControl "40/100:0"]
[WhiteClock "0:32:12"]
[BlackClock "0:24:36"]

1. c4 {[%emt 0:00:00]} e6 {[%emt 0:00:00]} 2. Nc3 {[%emt 0:00:00]} d5 {[%emt 0:
00:00]} 3. d4 {[%emt 0:00:00]} c6 {[%emt 0:00:00]} 4. e4 {[%emt 0:00:00]} dxe4
{[%emt 0:00:00]} 5. Nxe4 {[%emt 0:00:00]} Bb4+ {[%emt 0:00:00]} 6. Bd2 {
[%emt 0:00:00]} Qxd4 {[%emt 0:00:00]} 7. Bxb4 {[%emt 0:00:00]} Qxe4+ {[%emt 0:
00:00]} 8. Be2 {[%emt 0:00:00]} Na6 {[%emt 0:00:00]} 9. Ba5 {[%emt 0:00:00]} f6
{[%emt 0:00:00]} 10. Nf3 {[%emt 0:00:00]} b6 {[%emt 0:00:00]} 11. Nd2 {[%emt 0:
00:00]} Qf4 {[%emt 0:00:00]} 12. Bh5+ {[%emt 0:00:00]} g6 {[%emt 0:00:00]} 13.
Bf3 {[%emt 0:00:00]} Qe5+ {[%emt 0:00:00]} 14. Kf1 {[%emt 0:00:00]} Qc7 {
[%emt 0:00:00]} 15. Bc3 {[%emt 0:00:00]} e5 {[%emt 0:00:00]} 16. b4 {[%emt 0:
00:00]} Ne7 {[%emt 0:00:00]} 17. Ne4 {[%emt 0:00:00]} O-O {[%emt 0:00:00]} 18.
Qe2 {[%emt 0:00:00]} Nf5 {[%emt 0:00:00]} 19. Rd1 {[%emt 0:00:00]} Be6 {
[%emt 0:00:00]} 20. h4 {[%emt 0:00:00]} Qf7 {[%emt 0:00:00]} 21. Kg1 {[%emt 0:
00:00]} Rad8 {[%emt 0:00:00]} 22. Rxd8 {[%emt 0:00:00]} Rxd8 {[%emt 0:00:00]}
23. h5 {[%emt 0:00:00]} g5 {[%emt 0:00:00]} 24. Nxg5 {[%emt 0:00:00]} fxg5 {
[%emt 0:00:00]} 25. Qxe5 {[%emt 0:00:00]} Kf8 {[%emt 0:00:00]} 26. h6 {[%emt 0:
00:00]} Nb8 {[%emt 0:00:00]} 27. Rh5 {[%emt 0:00:00]} Nd7 {[%emt 0:00:00]} 28.
Qe1 {[%emt 0:00:00]} Qg6 {[%emt 0:00:00]} 29. Qd2 {[%emt 0:00:00]} Nxh6 {
[%emt 0:00:00]} 30. Rxg5 {[%emt 0:00:00]} Qb1+ {[%emt 0:00:00]} 31. Kh2 {
[%emt 0:00:00]} Nf7 {[%emt 0:00:00]} 32. Qf4 {[%emt 0:00:00]} Qd3 {[%emt 0:00:
00]} 33. Bd4 {[%emt 0:00:00]} c5 {[%emt 0:00:00]} 34. bxc5 {[%emt 0:00:00]}
bxc5 {[%emt 0:00:00]} 35. Bg7+ {[%emt 0:00:00]} Ke7 {[%emt 0:00:00]} 36. Rg3 {
[%emt 0:00:00]} Qxc4 {[%emt 0:00:00]} 37. Be4 {[%emt 0:00:00]} Rg8 {[%emt 0:00:
00]} 38. Qh4+ {[%emt 0:00:00]} Ke8 {[%emt 0:00:00]} 39. Qxh7 {[%emt 0:00:07]}
Rxg7 {[%emt 0:00:24]} 40. Rxg7 {[%emt 0:00:00]} Nf6 {[%emt 0:00:00]} 41. Qh4 {
[%emt 0:00:00]} Nxe4 {[%emt 0:00:00]} 42. Rg8+ {[%emt 0:00:00]} Kd7 {[%emt 0:
00:00]} 43. Ra8 {[%emt 0:00:00]} Ned6 {[%emt 0:00:00]} 44. Rxa7+ {[%emt 0:00:
00]} Kc6 {[%emt 0:00:00]} 45. Qg3 {[%emt 0:00:00]} Nh6 {[%emt 0:00:00]} 46.
Qf3+ {[%emt 0:00:00]} Kb6 {[%emt 0:00:00]} 47. Ra8 {[%emt 0:00:00]} Ng4+ {
[%emt 0:00:00]} 48. Kg3 {[%emt 0:00:00]} Nf5+ {[%emt 0:00:00]} 49. Kh3 {
[%emt 0:00:00]} Nxf2+ {[%emt 0:00:00]} 50. Qxf2 {[%emt 0:00:00]} Ne3+ {[%emt 0:
00:00]} 51. Kg3 {[%emt 0:00:00]} Nf1+ {[%emt 0:00:00]} 52. Kf3 {[%emt 0:00:00]}
Bd5# {[%emt 0:00:00]} 0-1

[Event "Gibraltar Masters 18th"]
[Site "Gibraltar"]
[Date "2020.01.24"]
[Round "4.16"]
[White "Narayanan, SL."]
[Black "Kobo, Ori"]
[Result "1-0"]
[ECO "B07"]
[WhiteElo "2637"]
[BlackElo "2445"]
[PlyCount "137"]
[EventDate "2020.01.21"]
[EventType "swiss"]
[EventRounds "10"]
[EventCountry "GGB"]
[SourceTitle "BritBase"]
[Source "John Saunders"]
[SourceDate "2021.06.05"]
[SourceVersion "1"]
[SourceVersionDate "2021.06.05"]
[SourceQuality "1"]
[TimeControl "40/100:0"]
[WhiteClock "0:08:56"]
[BlackClock "0:01:20"]

1. e4 {[%emt 0:00:00]} d6 {[%emt 0:00:00]} 2. d4 {[%emt 0:00:00]} Nf6 {[%emt 0:
00:00]} 3. Nc3 {[%emt 0:00:00]} g6 {[%emt 0:00:00]} 4. Bf4 {[%emt 0:00:00]} Bg7
{[%emt 0:00:00]} 5. Qd2 {[%emt 0:00:00]} c6 {[%emt 0:00:00]} 6. Bh6 {[%emt 0:
00:00]} Bxh6 {[%emt 0:00:00]} 7. Qxh6 {[%emt 0:00:00]} e5 {[%emt 0:00:00]} 8.
Nf3 {[%emt 0:00:00]} Qe7 {[%emt 0:00:00]} 9. dxe5 {[%emt 0:00:00]} dxe5 {
[%emt 0:00:00]} 10. Bc4 {[%emt 0:00:00]} b5 {[%emt 0:00:00]} 11. Bb3 {[%emt 0:
00:00]} Nbd7 {[%emt 0:00:00]} 12. a3 {[%emt 0:00:00]} Nc5 {[%emt 0:00:00]} 13.
Ba2 {[%emt 0:00:00]} Be6 {[%emt 0:00:00]} 14. Bxe6 {[%emt 0:00:00]} Nxe6 {
[%emt 0:00:00]} 15. Nxe5 {[%emt 0:00:00]} Nd4 {[%emt 0:00:00]} 16. O-O-O {
[%emt 0:00:00]} Qxe5 {[%emt 0:00:00]} 17. f4 {[%emt 0:00:00]} Qc5 {[%emt 0:00:
00]} 18. Qg5 {[%emt 0:00:00]} Nxe4 {[%emt 0:00:00]} 19. Rhe1 {[%emt 0:00:00]}
Qxg5 {[%emt 0:00:00]} 20. fxg5 {[%emt 0:00:00]} Ne6 {[%emt 0:00:00]} 21. Nxe4 {
[%emt 0:00:00]} Ke7 {[%emt 0:00:00]} 22. Rd3 {[%emt 0:00:00]} Rad8 {[%emt 0:00:
00]} 23. Rf3 {[%emt 0:00:00]} Rd5 {[%emt 0:00:00]} 24. Ref1 {[%emt 0:00:00]}
Nd8 {[%emt 0:00:00]} 25. h4 {[%emt 0:00:00]} Rd4 {[%emt 0:00:00]} 26. Re3 {
[%emt 0:00:00]} Kf8 {[%emt 0:00:00]} 27. c3 {[%emt 0:00:00]} Rd7 {[%emt 0:00:
00]} 28. Nf6 {[%emt 0:00:00]} Re7 {[%emt 0:00:00]} 29. Rd3 {[%emt 0:00:00]} Kg7
{[%emt 0:00:00]} 30. h5 {[%emt 0:00:00]} gxh5 {[%emt 0:00:00]} 31. Nxh5+ {
[%emt 0:00:00]} Kg6 {[%emt 0:00:00]} 32. Nf4+ {[%emt 0:00:00]} Kg7 {[%emt 0:00:
00]} 33. Rd6 {[%emt 0:00:00]} Ne6 {[%emt 0:00:00]} 34. Rxc6 {[%emt 0:00:00]}
Nxf4 {[%emt 0:00:00]} 35. Rxf4 {[%emt 0:00:00]} Rb8 {[%emt 0:00:00]} 36. Rd6 {
[%emt 0:00:00]} Rbb7 {[%emt 0:00:12]} 37. Rf5 {[%emt 0:00:00]} Re1+ {[%emt 0:
00:39]} 38. Rd1 {[%emt 0:00:00]} Re4 {[%emt 0:00:00]} 39. Rd4 {[%emt 0:00:00]}
Re2 {[%emt 0:00:00]} 40. Rd2 {[%emt 0:00:00]} Re3 {[%emt 0:00:00]} 41. Rdd5 {
[%emt 0:00:00]} a6 {[%emt 0:00:00]} 42. Kc2 {[%emt 0:00:00]} Rg3 {[%emt 0:00:
00]} 43. Rf2 {[%emt 0:00:00]} a5 {[%emt 0:00:00]} 44. a4 {[%emt 0:00:00]} bxa4
{[%emt 0:00:00]} 45. Rxa5 {[%emt 0:00:00]} Rg4 {[%emt 0:00:00]} 46. Ra6 {
[%emt 0:00:00]} Re7 {[%emt 0:00:00]} 47. Kb1 {[%emt 0:00:00]} Rd7 {[%emt 0:00:
00]} 48. Ka2 {[%emt 0:00:00]} Re7 {[%emt 0:00:00]} 49. Rb6 {[%emt 0:00:00]}
Rxg5 {[%emt 0:00:00]} 50. Ka3 {[%emt 0:00:00]} Ra7 {[%emt 0:00:00]} 51. Rb4 {
[%emt 0:00:00]} Rga5 {[%emt 0:00:00]} 52. Rff4 {[%emt 0:00:00]} Rg5 {[%emt 0:
00:00]} 53. Rxa4 {[%emt 0:00:00]} Rxa4+ {[%emt 0:00:00]} 54. Rxa4 {[%emt 0:00:
00]} Rxg2 {[%emt 0:00:00]} 55. b4 {[%emt 0:00:00]} Kf6 {[%emt 0:00:09]} 56. b5
{[%emt 0:00:00]} Ke5 {[%emt 0:00:44]} 57. b6 {[%emt 0:00:00]} Rg8 {[%emt 0:01:
01]} 58. Kb4 {[%emt 0:00:00]} f5 {[%emt 0:00:00]} 59. Kb5 {[%emt 0:00:00]} f4 {
[%emt 0:00:00]} 60. b7 {[%emt 0:00:09]} f3 {[%emt 0:00:00]} 61. Ra2 {[%emt 0:
00:00]} Ke4 {[%emt 0:00:00]} 62. c4 {[%emt 0:00:00]} Rg2 {[%emt 0:00:00]} 63.
Ra1 {[%emt 0:00:00]} Rb2+ {[%emt 0:00:00]} 64. Kc6 {[%emt 0:00:00]} f2 {
[%emt 0:00:00]} 65. Kc7 {[%emt 0:00:00]} h5 {[%emt 0:00:03]} 66. c5 {[%emt 0:
00:00]} Kf3 {[%emt 0:00:00]} 67. b8=Q {[%emt 0:00:00]} Rxb8 {[%emt 0:00:00]}
68. Kxb8 {[%emt 0:00:00]} Kg2 {[%emt 0:00:00]} 69. c6 {[%emt 0:00:00]} 1-0

[Event "Gibraltar Masters 18th"]
[Site "Gibraltar"]
[Date "2020.01.24"]
[Round "4.17"]
[White "Bellahcene, Bilel"]
[Black "Paravyan, David"]
[Result "0-1"]
[ECO "B95"]
[WhiteElo "2536"]
[BlackElo "2629"]
[PlyCount "138"]
[EventDate "2020.01.21"]
[EventType "swiss"]
[EventRounds "10"]
[EventCountry "GGB"]
[SourceTitle "BritBase"]
[Source "John Saunders"]
[SourceDate "2021.06.05"]
[SourceVersion "1"]
[SourceVersionDate "2021.06.05"]
[SourceQuality "1"]
[TimeControl "40/100:0"]
[WhiteClock "0:00:31"]
[BlackClock "0:05:01"]

1. e4 {[%emt 0:00:00]} c5 {[%emt 0:00:00]} 2. Nf3 {[%emt 0:00:00]} d6 {[%emt 0:
00:00]} 3. d4 {[%emt 0:00:00]} cxd4 {[%emt 0:00:00]} 4. Nxd4 {[%emt 0:00:00]}
Nf6 {[%emt 0:00:00]} 5. Nc3 {[%emt 0:00:00]} a6 {[%emt 0:00:00]} 6. Bg5 {
[%emt 0:00:00]} e6 {[%emt 0:00:00]} 7. Qf3 {[%emt 0:00:00]} Nbd7 {[%emt 0:00:
00]} 8. O-O-O {[%emt 0:00:00]} Qc7 {[%emt 0:00:00]} 9. Qg3 {[%emt 0:00:00]} b5
{[%emt 0:00:00]} 10. Bxb5 {[%emt 0:00:00]} axb5 {[%emt 0:00:00]} 11. Ndxb5 {
[%emt 0:00:00]} Qb7 {[%emt 0:00:00]} 12. Rxd6 {[%emt 0:00:00]} Rxa2 {[%emt 0:
00:00]} 13. Nxa2 {[%emt 0:00:00]} Qxb5 {[%emt 0:00:00]} 14. Rd4 {[%emt 0:00:00]
} Qa5 {[%emt 0:00:00]} 15. Nc3 {[%emt 0:00:00]} Qa1+ {[%emt 0:00:00]} 16. Kd2 {
[%emt 0:00:00]} Qa7 {[%emt 0:00:00]} 17. Qd3 {[%emt 0:00:00]} Be7 {[%emt 0:00:
00]} 18. Kc1 {[%emt 0:00:00]} O-O {[%emt 0:00:00]} 19. Kb1 {[%emt 0:00:00]} Ne5
{[%emt 0:00:00]} 20. Qd2 {[%emt 0:00:00]} Bd7 {[%emt 0:00:00]} 21. Rd1 {
[%emt 0:00:54]} Ra8 {[%emt 0:00:17]} 22. Kc1 {[%emt 0:00:01]} Rb8 {[%emt 0:00:
00]} 23. Qf4 {[%emt 0:00:09]} Ng6 {[%emt 0:00:00]} 24. Qg3 {[%emt 0:00:00]} e5
{[%emt 0:00:02]} 25. Bxf6 {[%emt 0:00:02]} exd4 {[%emt 0:00:00]} 26. Bxd4 {
[%emt 0:00:00]} Qb7 {[%emt 0:00:38]} 27. Nd5 {[%emt 0:00:00]} Bf8 {[%emt 0:00:
04]} 28. h4 {[%emt 0:00:00]} h5 {[%emt 0:00:00]} 29. Qg5 {[%emt 0:00:00]} Ra8 {
[%emt 0:00:04]} 30. b3 {[%emt 0:00:00]} Qc6 {[%emt 0:00:03]} 31. Bb2 {[%emt 0:
00:00]} Rc8 {[%emt 0:00:00]} 32. Rd2 {[%emt 0:00:00]} Qb5 {[%emt 0:00:00]} 33.
Nc3 {[%emt 0:00:00]} Qxg5 {[%emt 0:00:00]} 34. hxg5 {[%emt 0:00:00]} Be6 {
[%emt 0:00:00]} 35. Nd5 {[%emt 0:00:02]} h4 {[%emt 0:00:00]} 36. g3 {[%emt 0:
00:00]} hxg3 {[%emt 0:00:00]} 37. fxg3 {[%emt 0:00:00]} Bd6 {[%emt 0:00:00]}
38. Rd3 {[%emt 0:00:00]} Bb8 {[%emt 0:00:00]} 39. c4 {[%emt 0:00:00]} Kf8 {
[%emt 0:00:00]} 40. Kc2 {[%emt 0:00:00]} Ne5 {[%emt 0:00:00]} 41. Rd1 {[%emt 0:
00:00]} Ng6 {[%emt 0:00:00]} 42. Rd3 {[%emt 0:00:00]} Kg8 {[%emt 0:00:00]} 43.
Bd4 {[%emt 0:00:00]} Re8 {[%emt 0:00:00]} 44. c5 {[%emt 0:00:00]} Bh3 {[%emt 0:
00:00]} 45. Re3 {[%emt 0:00:00]} Bg2 {[%emt 0:00:00]} 46. Kd3 {[%emt 0:00:00]}
Bf1+ {[%emt 0:00:00]} 47. Kd2 {[%emt 0:00:00]} Ne7 {[%emt 0:00:00]} 48. b4 {
[%emt 0:00:00]} Nc6 {[%emt 0:00:00]} 49. Bb2 {[%emt 0:00:00]} Bc4 {[%emt 0:00:
00]} 50. Nb6 {[%emt 0:00:00]} Rd8+ {[%emt 0:00:00]} 51. Kc1 {[%emt 0:00:00]}
Be6 {[%emt 0:00:00]} 52. Bc3 {[%emt 0:00:00]} Kh7 {[%emt 0:00:00]} 53. Kc2 {
[%emt 0:00:00]} Kg6 {[%emt 0:00:00]} 54. Rd3 {[%emt 0:00:00]} Bb3+ {[%emt 0:01:
37]} 55. Kd2 {[%emt 0:00:00]} Rxd3+ {[%emt 0:00:00]} 56. Kxd3 {[%emt 0:00:00]}
Bxg3 {[%emt 0:00:00]} 57. Nc8 {[%emt 0:00:00]} Be6 {[%emt 0:00:00]} 58. Nb6 {
[%emt 0:00:00]} Kxg5 {[%emt 0:00:00]} 59. Nc4 {[%emt 0:00:00]} Bf2 {[%emt 0:00:
00]} 60. b5 {[%emt 0:01:25]} Na7 {[%emt 0:00:02]} 61. b6 {[%emt 0:00:00]} Nc6 {
[%emt 0:00:00]} 62. Bxg7 {[%emt 0:00:00]} Bxc5 {[%emt 0:00:00]} 63. b7 {
[%emt 0:00:00]} f6 {[%emt 0:00:00]} 64. e5 {[%emt 0:00:00]} f5 {[%emt 0:00:00]}
65. Bf6+ {[%emt 0:00:00]} Kg4 {[%emt 0:00:00]} 66. Bd8 {[%emt 0:00:05]} f4 {
[%emt 0:00:00]} 67. Bc7 {[%emt 0:00:00]} Ba7 {[%emt 0:00:00]} 68. Nd2 {[%emt 0:
00:07]} f3 {[%emt 0:00:00]} 69. Ke4 {[%emt 0:00:04]} Nb4 {[%emt 0:00:00]} 0-1